Cogmind - Beta 14 @@@ ROGUE MODE // 2024.09.12 @ 22:24:12 Player: Dull Result: Destroyed by AG-26287 with Assembled Focal Cannon Performance ------------- Evolutions (1) 500 Regions Visited (5) 1000 Robots Destroyed (84) 420 Value Destroyed (2183) 2183 Prototype IDs (19) 380 Alien Tech Used (0) 0 Bonus (3160) 3160 TOTAL SCORE: 7643 Bonus ------- High Alert Combat Kills 204 Follower Combat Kills 356 Met Imprinter 300 Was Imprinted 300 Destroyed Z-Imprinter 1000 Triggered Deep Caves Wall 500 Exposed GOLEM Chamber 500 Cogmind --------- Core Integrity 0/400 Matter 187/300 Energy 98/100 System Corruption 0% Temperature Warning (311) Movement Rolling (135) Ox3 Location -7/Deep Caves Parts ------- > --- POWER (1) -------- Zionite Light DM Reactor > --- PROPULSION (3) --- Armored Wheel Armored Wheel > --- UTILITY (3) ------ Experimental Heat Sink Huge Storage Unit > --- WEAPON (2) ------- Zionite Phaser-S > --- INVENTORY (25) --- Zionite Light DM Reactor Zionite Light DM Reactor Experimental Heat Sink Zionite Metafield Generator Surveybot 24 Scanner Surveybot 24 Chip Target Analyzer Experimental Reaction Control System Phase Shifter Zionite Heavy Carapace Makeshift Hacking Suite Makeshift Hacking Suite Zionite Laser-S Zionite Laser-S Zionite Laser-S Zionite Laser-S Rocket Launcher Mini Grenade Launcher RU-N14's Throwing Claymores (2) RU-N14's Throwing Claymores (2) RU-N14's Throwing Claymores (4) RU-N14's Throwing Claymores (2) Makeshift Spear Peak State ------------ > --- POWER ------------ Zionite Light DM Reactor > --- PROPULSION ------- Zionite Composite Leg I Zionite Composite Leg I Armored Wheel > --- UTILITY ---------- Huge Storage Unit Zionite Heavy Carapace > --- WEAPON ----------- Particle Cannon Improved Light Cannon > --- INVENTORY -------- Zionite Light DM Reactor Zionite Light DM Reactor Zionite Glidesys I Zionite Glidesys I Zionite Glidesys I Zionite Glidesys I Zionite Glidesys I Experimental Heat Sink Experimental Heat Sink Zionite Metafield Generator Surveybot 24 Scanner Surveybot 24 Chip Target Analyzer Experimental Reaction Control System Phase Shifter Makeshift Hacking Suite Makeshift Hacking Suite Rocket Launcher Mini Grenade Launcher RU-N14's Throwing Claymores RU-N14's Throwing Claymores RU-N14's Throwing Claymores RU-N14's Throwing Claymores Makeshift Spear [Rating: 53] Favorites ----------- Power Light Nuclear Core Engine Improved Ion Engine Power Core Light Nuclear Core Reactor Zionite Light DM Reactor Propulsion Armored Wheel Treads Light Treads Leg Aluminum Leg Wheel Armored Wheel Hover Unit Zionite Glidesys I Utility Huge Storage Unit Device Cooling System Storage Huge Storage Unit Protection Hardened Light Armor Plating Weapon Particle Cannon Energy Gun Small Laser Energy Cannon Particle Cannon Ballistic Cannon Improved Light Cannon Launcher Mini Grenade Launcher Special Weapon RU-N14's Throwing Claymores Build | -11 -10 -9 -9 -7 -7 ------- Run | Yrd Mat Mat Min Zio Dee Slots Evolved 2 | . . 2 . . . Power . | . . . . . . Propulsion 1 | . . 1 . . . Utility 1 | . . 1 . . . Weapon . | . . . . . . Parts Attached 93 | 1 31 17 5 5 34 Power 12 | . 3 2 2 . 5 Engine 3 | . 1 2 . . . Core 4 | . 2 . 2 . . Reactor 5 | . . . . . 5 Propulsion 28 | . 12 5 . 2 9 Treads 7 | . 7 . . . . Leg 4 | . 2 . . . 2 Wheel 16 | . 3 5 . 2 6 Hover 1 | . . . . . 1 Flight . | . . . . . . Utility 26 | 1 7 4 . 1 13 Device 14 | 1 5 1 . . 7 Storage 3 | . 2 . . . 1 Processor . | . . . . . . Hackware . | . . . . . . Protection 9 | . . 3 . 1 5 Artifact . | . . . . . . Weapon 27 | . 9 6 3 2 7 Energy Gun 11 | . 7 . . . 4 Energy Cannon 11 | . 2 4 2 1 2 Ballistic Gun . | . . . . . . Ballistic Cannon 1 | . . . . . 1 Launcher 3 | . . 2 1 . . Special Weapon 1 | . . . . 1 . Impact Weapon . | . . . . . . Slashing Weapon . | . . . . . . Piercing Weapon . | . . . . . . Special Melee Weapon . | . . . . . . Unidentified Prototypes 14 | . . . . 1 13 Parts Lost 14 | . 6 3 . . 5 Power 2 | . 1 1 . . . Propulsion 2 | . 1 . . . 1 Utility 3 | . 2 . . . 1 Weapon 7 | . 2 2 . . 3 Highest Loss Streak 5 | . 5 1 . . 3 To Critical Strikes . | . . . . . . Average Slot Usage (%) 97 | . 96 99 100 100 92 Engine 2 | . 1 9 4 . . Core 7 | . 12 1 6 11 2 Reactor 1 | . . . . . 8 Treads 5 | . 15 . . . . Leg 1 | . 3 . . . . Wheel 24 | . 8 32 33 33 31 Device 10 | . 11 11 11 11 7 Storage 12 | . 14 11 11 11 11 Protection 7 | . . 10 11 11 9 Energy Gun 9 | . 24 . . . 9 Energy Cannon 12 | . 2 21 22 22 6 Peak Build Rating 53 | 9 18 22 22 27 53 Average Rating 22 | 7 11 20 21 23 43 On Entrance 16 | 6 9 18 21 22 24 Naked Turns . | . . . . . . Heaviest Build 107 | 13 95 104 104 106 107 Greatest Support 40 | 20 40 36 36 36 36 Greatest Overweight (x) 35 | . 4 2 2 2 35 Average Overweight (x) 1 | . 1 2 2 2 2 Largest Inventory Capacity 25 | 8 25 25 25 25 25 Average Capacity 21 | 8 14 25 25 25 25 Most Carried 25 | 7 25 25 25 25 25 Average Carried 20 | 6 12 24 25 24 24 Final Capacity 25 | 8 25 25 25 25 25 Final Carried 25 | 7 25 25 25 25 24 Class Distribution -------------------- 84% | Mutant 15% | Scavenger-Mutant Dominant Class ---------------- Mutant | -10/Materials Mutant | -9/Materials Mutant | -9/Mines Mutant | -7/Zion Mutant | -7/Deep Caves Resources | -11 -10 -9 -9 -7 -7 ----------- Run | Yrd Mat Mat Min Zio Dee Matter Collected 1081 | 210 285 157 139 50 240 Remotely . | . . . . . . Salvage Created 3167 | 107 1017 1636 202 . 205 Parts 176 | 5 55 88 13 . 15 Haulers Intercepted 6 | . 2 4 . . . Recyclers Shooed 3 | . 3 . . . . Parts Field Recycled . | . . . . . . Retrieved Matter . | . . . . . . Parts Self-Destructed . | . . . . . . Prevented . | . . . . . . Kills | -11 -10 -9 -9 -7 -7 ------- Run | Yrd Mat Mat Min Zio Dee Combat Hostiles Destroyed 63 | . 20 31 9 . 3 Guns 21 | . 19 . . . 2 Cannons 35 | . . 28 6 . 1 AOE 6 | . . 3 3 . . Classes Destroyed 13 | 2 7 2 1 . 1 Worker 3 | . 2 1 . . . Tunneler 1 | 1 . . . . . Hauler 6 | . 2 4 . . . Recycler 3 | 1 1 1 . . . Mechanic 1 | . 1 . . . . Operator 4 | . 3 1 . . . Watcher 3 | . 2 1 . . . Swarmer 16 | . 6 4 6 . . Grunt 32 | . 14 16 2 . . Brawler 2 | . . 2 . . . Duelist 1 | . . . 1 . . Sentry 9 | . . 9 . . . Z-Light 3 | . . . . . 3 Best Kill Streak 5 | 2 5 5 3 . 2 Combat Bots Only 5 | . 5 5 3 . 2 Max Kills in Single Turn 3 | 1 2 3 2 . 1 Gunslinging 1 | . 1 . . . . Exploded 3 | . . 3 2 . . Melee . | . . . . . . Uniques/NPCs Destroyed . | . . . . . . Combat | -11 -10 -9 -9 -7 -7 -------- Run | Yrd Mat Mat Min Zio Dee Hostile Shots Fired 331 | . 154 95 36 . 46 Missed 87 | . 45 24 8 . 10 Damage Taken 3894 | . 1226 916 407 . 1345 Core 672 | . 237 79 49 . 307 Absorbed by Shields . | . . . . . . Regen/Repaired (Parts) 109 | . 46 63 . . . Core Remaining (%) 52 | 100 5 . . . . Volleys Fired 219 | 7 104 70 19 . 19 Largest 2 | 2 2 2 2 . 2 Hottest 141 | 80 136 136 136 . 141 Shots Fired 416 | 14 189 140 37 . 36 Gun 217 | 14 187 . . . 16 Cannon 195 | . 2 138 35 . 20 Launcher 4 | . . 2 2 . . Special . | . . . . . . Kinetic 7 | . . . . . 7 Thermal 398 | 14 189 138 35 . 22 Explosive 4 | . . 2 2 . . Electromagnetic . | . . . . . . Phasic 7 | . . . . . 7 Robot Hit Streak 13 | 5 13 10 6 . 6 Robot Miss Streak 3 | 3 3 3 3 . 2 Penetration Max . | . . . . . . Secondary Targets 5 | . 5 . . . . Max Gunslinging Chain 1 | . 1 . . . . Shots Hit Robots 272 | 9 136 89 17 . 21 Core Hits 121 | 3 58 39 10 . 11 Critical Kills 1 | . . 1 . . . Critical Parts Destroyed . | . . . . . . Critical Strikes 12 | . 10 1 . . 1 Burn 10 | . 10 . . . . Meltdown 1 | . . 1 . . . Blast 1 | . . . . . 1 Melee Attacks . | . . . . . . Impact . | . . . . . . Slashing . | . . . . . . Piercing . | . . . . . . Sneak Attacks . | . . . . . . Combat Hostiles . | . . . . . . Follow-up Attacks . | . . . . . . Damage Inflicted 4821 | 97 1668 2010 509 . 537 Guns 2046 | 97 1648 . . . 301 Cannons 2471 | . 20 1844 371 . 236 Explosions 304 | . . 166 138 . . Melee . | . . . . . . Ramming . | . . . . . . Kinetic 70 | . . . . . 70 Thermal 4381 | 97 1668 1844 371 . 401 Explosive 304 | . . 166 138 . . Electromagnetic . | . . . . . . Impact . | . . . . . . Slashing . | . . . . . . Piercing . | . . . . . . Phasic 66 | . . . . . 66 Highest Corruption 2 | . . 2 2 2 . Average Corruption 1 | . . 1 2 2 . Corruption Purged . | . . . . . . Corruption Blocked . | . . . . . . Effects 16 | . . 7 9 . . Message Errors 3 | . . 3 . . . Matter Fused 5 | . . 2 3 . . Heat Flow Errors 2 | . . 2 . . . Energy Discharges 3 | . . . 3 . . Data Loss (minor) 1 | . . . 1 . . Data Loss (major) 1 | . . . 1 . . Misfires 1 | . . . 1 . . Overload Shots . | . . . . . . Overflow Damage 30 | . . 12 5 . 13 Projectiles 26 | . . 12 1 . 13 Explosions 4 | . . . 4 . . Melee . | . . . . . . Knockbacks 2 | . . . . . 2 Impact . | . . . . . . Kinetic 2 | . . . . . 2 Secondary . | . . . . . . Self-Inflicted Damage 47 | . . . 47 . . Shots 2 | . . . 2 . . Rammed . | . . . . . . Targets Rammed . | . . . . . . Kicked . | . . . . . . Crushed . | . . . . . . Highest Temperature 331 | 72 220 214 138 . 331 Average Temperature 71 | 30 71 52 58 . 156 Received Heat Transfer 1308 | . 627 342 66 . 273 Siege Activations . | . . . . . . Robots Corrupted . | . . . . . . Combat Hostiles . | . . . . . . Parts Fried . | . . . . . . Impact Corruptions . | . . . . . . Robots Melted 2 | . 1 1 . . . Combat Hostiles 1 | . 1 . . . . Parts Melted 15 | . 8 5 . . 2 Heat Transferred 9657 | 225 4909 3330 666 . 527 Parts Sabotaged . | . . . . . . Parts Stolen . | . . . . . . Parts Stripped . | . . . . . . Power Chain Reactions . | . . . . . . Alert | -11 -10 -9 -9 -7 -7 ------- Run | Yrd Mat Mat Min Zio Dee Peak Influence 722 | 10 280 722 514 . . Initial 281 | . 6 60 281 . . Average 275 | 5 129 482 364 . . Maximum Alert Level 3 | . 1 3 2 . . Low Security (%) 51 | 100 92 8 . . . Level 1 22 | . 7 19 78 . . Level 2 23 | . . 62 21 . . Level 3 2 | . . 9 . . . Level 4 . | . . . . . . Level 5 . | . . . . . . High Security . | . . . . . . Max Security . | . . . . . . Squads Dispatched 11 | . 6 5 . . . Investigation 6 | . 2 4 . . . Extermination . | . . . . . . Reinforcement 5 | . 4 1 . . . Assault . | . . . . . . Garrison . | . . . . . . Intercept . | . . . . . . Searches Triggered . | . . . . . . Construction Impeded . | . . . . . . Haulers Reinforced . | . . . . . . Active Scanning Responses . | . . . . . . Cargo Convoy Interrupts . | . . . . . . Stealth | -11 -10 -9 -9 -7 -7 --------- Run | Yrd Mat Mat Min Zio Dee Distress Signals 5 | . 2 3 . . . Communications Jammed . | . . . . . . Distress Signals . | . . . . . . Times Spotted 125 | . 42 45 11 . 27 Peak Tracking Total 21 | . 6 7 3 . 21 Tactical Retreats 3 | . 2 1 . . . Traps | -11 -10 -9 -9 -7 -7 ------- Run | Yrd Mat Mat Min Zio Dee Traps Triggered 7 | . 4 3 . . . Indirectly . | . . . . . . Trap Hack Attempts . | . . . . . . Triggered . | . . . . . . Disarmed . | . . . . . . Reprogrammed . | . . . . . . Reused . | . . . . . . Traps Extracted . | . . . . . . Installed . | . . . . . . Triggered . | . . . . . . Machines | -11 -10 -9 -9 -7 -7 ---------- Run | Yrd Mat Mat Min Zio Dee Machines Disabled 10 | . . 6 1 . 3 Max in Single Turn 2 | . . 2 1 . 1 Machines Repaired . | . . . . . . Machines Dismantled . | . . . . . . Machines Sabotaged . | . . . . . . Overloaded Fab Kills . | . . . . . . Hacking | -11 -10 -9 -9 -7 -7 --------- Run | Yrd Mat Mat Min Zio Dee Machines Accessed 15 | . 7 8 . . . Terminals 9 | . 4 5 . . . Fabricators . | . . . . . . Repair Stations 2 | . 1 1 . . . Recycling Units 3 | . 2 1 . . . Scanalyzers 1 | . . 1 . . . Garrison Access . | . . . . . . Total Hacks 30 | . 11 19 . . . Successful 13 | . 7 6 . . . Failed 17 | . 4 13 . . . Catastrophic 6 | . 4 2 . . . Database Lockouts . | . . . . . . Manual 25 | . 5 10 . 10 . Terminals 18 | . 6 12 . . . Fabricators . | . . . . . . Repair Stations 4 | . 2 2 . . . Recycling Units 6 | . 3 3 . . . Scanalyzers 2 | . . 2 . . . Garrison Access . | . . . . . . Terminal Hacks 3 | . 2 1 . . . Prototype ID Bank 2 | . 2 . . . . Zone Layout 1 | . . 1 . . . Fabricator Hacks . | . . . . . . Repair Station Hacks 4 | . 2 2 . . . Scan Component 2 | . 1 1 . . . Repair 2 | . 1 1 . . . Recycling Unit Hacks 1 | . 1 . . . . Retrieve Components 1 | . 1 . . . . Scanalyzer 2 | . . 2 . . . Insert Component 1 | . . 1 . . . Analyze 1 | . . 1 . . . Garrison Access Hacks . | . . . . . . Unauthorized Hacks 3 | . 2 1 . . . Terminals . | . . . . . . Fabricators . | . . . . . . Repair Stations . | . . . . . . Recycling Units 3 | . 2 1 . . . Reject 1 | . 1 . . . . Mask 2 | . 1 1 . . . Scanalyzers . | . . . . . . Garrison Access . | . . . . . . Data Cores Recovered . | . . . . . . Used . | . . . . . . Hacking Detections 9 | . 4 5 . . . Full Trace Events 4 | . 1 3 . . . Feedback Events . | . . . . . . Feedback Blocked . | . . . . . . Robot Schematics Acquired . | . . . . . . Robots Built . | . . . . . . Authchips . | . . . . . . Time . | . . . . . . Total Robot Build Rating . | . . . . . . Part Schematics Acquired 1 | . . 1 . . . Parts Built . | . . . . . . Authchips . | . . . . . . Time . | . . . . . . Total Part Build Rating . | . . . . . . Parts Repaired 2 | . 1 1 . . . Time 70 | . 38 32 . . . Parts Recycled . | . . . . . . Recycled Matter . | . . . . . . Retrieved Matter . | . . . . . . Retrieved Components 7 | . 7 . . . . Parts Scanalyzed 1 | . . 1 . . . Part Schematics Acquired 1 | . . 1 . . . Parts Damaged . | . . . . . . Bothacking | -11 -10 -9 -9 -7 -7 ------------ Run | Yrd Mat Mat Min Zio Dee Used RIF Installer . | . . . . . . Robots Hacked . | . . . . . . Non-combat . | . . . . . . Combat . | . . . . . . Robot Hacks Applied . | . . . . . . Relay Couplers Released . | . . . . . . Fabnet Peak Effective % . | . . . . . . Robots Rewired . | . . . . . . Allies Hacked . | . . . . . . Hacks Repelled . | . . . . . . Allies | -11 -10 -9 -9 -7 -7 -------- Run | Yrd Mat Mat Min Zio Dee Total Allies 10 | . . . 3 6 1 Largest Group 6 | . . . 3 6 3 Highest-Rated Group 344 | . . . 40 344 311 Highest-Rated Ally 119 | . . . 16 96 119 Total Orders . | . . . . . . Ally Attacks 86 | . . . 12 . 74 Total Damage 2542 | . . . 119 . 2423 Kills 18 | . . . 2 . 16 Allies Corrupted . | . . . . . . Allies Melted . | . . . . . . Intel | -11 -10 -9 -9 -7 -7 ------- Run | Yrd Mat Mat Min Zio Dee Robot Analysis Total . | . . . . . . Derelict Logs Recovered 2 | . . . 1 1 . Drone Launches . | . . . . . . Drone Recoveries . | . . . . . . Exploration | -11 -10 -9 -9 -7 -7 ------------- Run | Yrd Mat Mat Min Zio Dee Turns Passed 7872 | 64 2566 1560 793 1462 1427 Spaces Moved 5105 | 34 1407 954 562 1173 975 Core 7 | . 1 . . . 6 Treads 723 | . 723 . . . . Legs 194 | 34 159 . . . 1 Wheels 4181 | . 524 954 562 1173 968 Hover . | . . . . . . Flight . | . . . . . . Fastest Speed 105 | 120 105 120 120 120 120 Average Speed 130 | 120 149 120 120 120 131 Slowest Speed 1800 | 120 260 120 120 120 1800 Overloaded Moves . | . . . . . . Propulsion Burnouts . | . . . . . . Robots Hopped . | . . . . . . Cave-ins Triggered . | . . . . . . Exploration Rate (%) 75 | 3 99 76 97 91 84 Regions Visited 5 Branch Regions 3 Pre-discovered Areas 1 | . . . 1 . . Known Exits Taken . | . . . . . . Unknown Exits Taken 5 | 1 1 1 1 1 . Scrap Searched 3 | . . . 1 2 . Spaces Dug . | . . . . . . Terrain Destroyed 24 | . . 4 18 . 2 Melee . | . . . . . . Projectile 2 | . . . . . 2 AOE 22 | . . 4 18 . . Terrain Rammed . | . . . . . . Walls Destroyed . | . . . . . . Machines Disabled . | . . . . . . Actions | -11 -10 -9 -9 -7 -7 --------- Run | Yrd Mat Mat Min Zio Dee Total 5960 | 42 1695 1238 646 1228 1111 Wait 340 | . 78 166 55 41 . Move 5100 | 33 1406 953 561 1172 975 Hop . | . . . . . . Pick Up 93 | 1 43 16 2 4 27 Fast Attach 37 | 1 12 2 . 2 20 Attach 11 | . 4 5 . . 2 Detach 2 | . . 1 . . 1 Swap 45 | . 15 10 5 3 12 Drop 111 | . 33 15 4 6 53 Fire 219 | 7 104 70 19 . 19 Melee . | . . . . . . Ram . | . . . . . . Kick . | . . . . . . Crush . | . . . . . . Escape Stasis . | . . . . . . Rewire 2 | . . . . . 2 Trap . | . . . . . . Miscellaneous . | . . . . . . Route ------- -11/Scrapyard -10/Materials (discovered 5 exits: *Mat x3 / [*Min] / [*Sub]) -9/Materials (discovered 4 exits: [*Mat x3] / [*Min]) -9/Mines (discovered 3 exits: [*Mat x2] / *Zio) -7/Zion (discovered 2 exits: [*Dee] / [*Pro]) -7/Deep Caves History --------- Turn | Location | Event 1 | -11/Scrapyard | Discovered new exit (range 3) 65 | -11/Scrapyard | Entered Materials 309 | -10/Materials | Build established: Mutant 730 | -10/Materials | Discovered new exit (range 12) 910 | -10/Materials | Discovered new exit (range 11) 1159 | -10/Materials | Core integrity fell below 50% 1164 | -10/Materials | Repaired Lgt. Nuclear Core 1184 | -10/Materials | Core integrity fell below 20% 1218 | -10/Materials | Lost 5 parts (1p1n1u2w) 1250 | -10/Materials | Discovered new exit (range 9) 1476 | -10/Materials | Build established: Scavenger-Mutant 1521 | -10/Materials | Discovered new exit (range 3) 2116 | -10/Materials | Discovered new exit (range 6) 2389 | -10/Materials | Build established: Mutant 2631 | -10/Materials | Entered another Materials area 2631 | -9/Materials | Evolved 2 slots: Propulsion x1, Utility x1 3100 | -9/Materials | Discovered new exit (range 16) 3259 | -9/Materials | Discovered new exit (range 15) 3610 | -9/Materials | Discovered new exit (range 13) 4095 | -9/Materials | Repaired Arm. Wheel 4183 | -9/Materials | Discovered new exit (range 5) 4191 | -9/Materials | Entered Mines 4375 | -9/Mines | Learned location of Zion (-7) 4383 | -9/Mines | A Derelict revealed a hidden shortcut to a safe place 4460 | -9/Mines | Discovered new exit (range 10) 4477 | -9/Mines | Assisted by bots powering up and referring to "LRC-V3" 4645 | -9/Mines | A weapon hastily lodged in a ceiling crevice suddenly fell to the ground 4875 | -9/Mines | Discovered new exit (range 10) 4984 | -9/Mines | Entered Zion 5043 | -7/Zion | Discovered new exit (range 12) 5070 | -7/Zion | Found Prototype Special Weapon 5070 | -7/Zion | Identified RU-N14's Throwing Claymores 5083 | -7/Zion | Found RU-N14's Throwing Claymores 5085 | -7/Zion | Found RU-N14's Throwing Claymores 5089 | -7/Zion | Found RU-N14's Throwing Claymores 5153 | -7/Zion | System corruption cleaned by Quarantine Array 5684 | -7/Zion | Given A8's code to call for help 5829 | -7/Zion | Met Imprinter 5850 | -7/Zion | Imprinted 5852 | -7/Zion | Declared Zion's savior 6285 | -7/Zion | Enhanced Grunt warped into view, answering call for help 6292 | -7/Zion | Enhanced Grunt warped into view, answering call for help 6372 | -7/Zion | Acquired unknown access codes intercepted by a Zionite 6403 | -7/Zion | Opened final containment barrier to the Deep Caves 6424 | -7/Zion | Discovered new exit (range 3) 6424 | -7/Zion | Saw the warning signs outside the Deep Caves entrance 6446 | -7/Zion | Entered Deep Caves 6446 | -7/Deep Caves | Accompanied by 6 allies 6448 | -7/Deep Caves | Met 5H-AD0 6533 | -7/Deep Caves | Found Surveybot 24 Chip 6536 | -7/Deep Caves | Found Surveybot 24 Scanner 6677 | -7/Deep Caves | Z-Facility disabled 6725 | -7/Deep Caves | Attacked by Z-Imprinter 6843 | -7/Deep Caves | Found Prototype Protection 6843 | -7/Deep Caves | Identified Zio. Weapon Casing 6858 | -7/Deep Caves | Found Prototype Device 6858 | -7/Deep Caves | Identified Zio. Metafield Generator 7047 | -7/Deep Caves | Build established: Scavenger-Mutant 7105 | -7/Deep Caves | Found Zio. Weapon Casing 7372 | -7/Deep Caves | Build established: Mutant 7382 | -7/Deep Caves | Found Prototype Protection 7382 | -7/Deep Caves | Identified Zio. Heavy Carapace 7444 | -7/Deep Caves | Found Zio. Heavy Carapace 7844 | -7/Deep Caves | Spotted AG-26287 7859 | -7/Deep Caves | Exposed GOLEM chamber 7860 | -7/Deep Caves | Triggered Deep Caves wall 7860 | -7/Deep Caves | Core integrity fell below 50% 7871 | -7/Deep Caves | Core integrity fell below 20% 7873 | -7/Deep Caves | Destroyed by AG-26287 with Assembled Focal Cannon Last Messages --------------- 07437_ Acquired Zio. Light DM Reactor. 07443_ Dropped Zio. Glidesys I. 07444_ Acquired Zio. Heavy Carapace. 07449_ Dropped Zio. Glidesys I. 07450_ Acquired Zio. Laser-S. 07451_ Dropped Arm. Wheel. 07489_ Acquired Arm. Wheel. 07520_ Acquired Zio. Laser-S. 07846_ AG-26287: "DSI9AT1D G8OHIBQ29FWG 26R186 QD12WHW8W33 TDK1 81FTS" 07850_ 3G-PG6(M) destroyed. 07854_ TW-XJY(M) destroyed. 07859_ Arm. Wheel destroyed. [Achievement: That's One Door That Should Stay Closed] 07862_ Zio. Heavy Carapace destroyed. 07864_ AG-26287 knocked back. 07870_ AG-26287 suffers critical hit (Blast). 07870_ Destroyed Prototype Device. 07870_ AG-26287 knocked back. 07870_ Imp. Light Cannon destroyed. 07871_ AG-26287 GOLEM Unit beginning Prototype Device integration. Map ----- +----------------------------------------------------+ | ????????????????????????????????# ### | | ????????????????????????????????# | | ????????????????????????????????# ##### | | ????????????????????????????????# #???# | | ????????????????????????????????# #???## ### | | ????????????????????????????????# #???## #?# | | ???????????????????????????????## ##?## ##?### | | ??????????????????????????????## #?# ##????# | | ?????????????????????? ???# #### #?????# | | ???????????????????? ! ##?# #?????## | | ????????????????? #?## ### #??????# | | ??????????????? #??# ##?# #??????? | | ????????????? ! #??## ##??# #??????? | | ????????????? ! #???####???# #?????## | | ???????????? * a = ! #??????????# #?????# | | ???????????? =a aa M #??????????# ##????# | | ??????????? aa = #??????????# ##????# | | ??????????? == a aa != ##?????????# ###??# | | ??????????? =aa= ! #?????????# ##?# | | ?????????? ! a #?????????# ### | | ?????????? a ! #?????????## ## | | ????????? G !% ########???### | | ????????? =M g ##???## | | ??????????" = g #??## | | ????????? % % %[ #### | | ?????????" @ ###### ## | | ????????? #????# ### | | ?????????" ##????# ##?## | | ????????? # # #?????## ##???## | | ?????????? #### ## ## ##??????# #?????## | | ??????????" #????# ?# ?###???????## ##??????### | | ??????????? ??????#??# ????????????####?????????# | | ???????????????????????#?????????????????????????? | | | | | | | | | | | | | | | | | | | | | | | | | | | | | | | | | | | +----------------------------------------------------+ Best States ------------- Heat Dissipation 80 Energy Generation 27 Energy Capacity 700 Matter Stores 300 Matter Capacity 300 Sight Range 16 Robot Scan Range 14 Terrain Scan Range 16 Terrain Scan Density 10 Armor Coverage 1200 Evasion (%) 55 Recoil Reduction 2 Item Schematics ----------------- Rocket Launcher | -9/Materials | Scanalyzed Robot Schematics ------------------ None Fabricated ------------ Nothing Alien Tech Used ----------------- None Achievements -------------- Are We The Baddies? Help From High Places Signs Are For Wimps That's One Door That Should Stay Closed Challenges ------------ None Game ------ Seed SalvageGravityClaws Manual? 0 Play Time 01:01:40 Cumulative 64.3 hours Start 2024.09.12 @ 21:24:16 End 2024.09.12 @ 22:24:12 Sessions 1 Manual Loads 0 Difficulty Rogue Special Mode None Game No. 89 Rogue 89 Adventurer 0 Explorer 0 Win Type - Total 1 Types 1/0/0/0/0/0/0/0/0 Lore% 14 Gallery% 51 Achievement% 40 Wizard Run 0 Options --------- Layout 0 ASCII 0 Keyboard 0 Movement Mouse Keybinds 1 Fullscreen 1 Font 18/TerminusBold Map View 76x50 Zoom Use 0% Tactical HUD 1 Map Filters NONE Filters NONE Steam 1 RUN: 5f71d2ea-ddc5-447e-99d4-60320e5eb8a2